bitfinex/quotes_SOLUSD_20250717
["timestamp","ask_amount","ask_price","bid_price","bid_amount"]
[1752792853334,42.74,174.98,174.95,5.71591243]
[1752792853634,42.74,174.98,174.97,9.29412461]
[1752792854632,10.0,175.01,174.97,15.66939008]
[1752792854814,10.0,175.02,175.0,9.29412461]
[1752792855009,10.00808394,175.08,175.01,9.95412461]
[1752792855010,10.0,175.06,175.01,9.95412461]
[1752792855216,11.5434,175.08,175.05,9.29412461]
[1752792855418,32.68,175.07,175.02,0.95055659]
[1752792855623,42.68,175.07,175.06,9.29412461]
[1752792856236,10.0,175.05,175.02,0.29036157]
[1752792856544,10.0,175.05,175.04,9.29412461]
[1752792856726,32.68,175.05,175.04,5.71297989]
[1752792856928,42.68,175.05,175.04,15.0071045]
[1752792857439,42.68,175.05,175.04,9.29412461]
[1752792857816,10.0,175.08,175.04,9.29412461]
[1752792858015,10.0,175.1,175.07,9.29412461]
[1752792858217,32.64,175.09,175.07,0.66]
[1752792858434,32.64,175.09,175.08,9.29412461]
[1752792858820,42.64,175.09,175.08,15.00579927]
[1752792859141,32.64,175.09,175.08,9.29412461]
[1752792859343,32.64,175.09,175.08,15.00579927]
[1752792859542,42.64,175.09,175.08,15.00579927]
[1752792859743,1.6292,175.13,175.08,24.95992388]
[1752792859744,11.6292,175.13,175.08,24.95992388]
[1752792860044,10.0,175.13,175.09,0.28998555]
[1752792860240,10.0,175.1,175.08,5.71167466]
[1752792860413,32.7,175.09,175.08,5.71167466]
[1752792860618,42.7,175.1,175.08,5.71167466]
[1752792860819,42.7,175.1,175.08,6.37167466]
[1752792861429,10.0,175.11,175.09,0.66]
[1752792861627,10.0,175.14,175.1,10.24412609]
[1752792861838,10.0,175.12,175.1,0.95000148]
[1752792862039,10.0,175.12,175.11,9.95412461]
[1752792862431,10.0,175.12,175.11,9.29412461]
[1752792862633,32.68,175.14,175.11,9.29412461]
[1752792862933,32.64,175.14,175.13,15.00416857]
[1752792863238,10.0,175.16,175.13,15.69416857]
[1752792863536,42.64,175.16,175.15,9.29412461]
[1752792863915,10.0,175.16,175.15,9.29412461]
[1752792864219,42.6,175.18,175.15,9.29412461]
[1752792864414,43.31,175.18,175.17,9.29412461]
[1752792864627,42.6,175.18,175.17,9.29412461]
[1752792865030,10.0,175.19,175.17,15.00286469]
[1752792865235,42.58,175.21,175.18,9.58347408]
[1752792865421,32.58,175.21,175.2,9.29412461]
[1752792865629,42.58,175.21,175.17,46.26979389]
[1752792865831,42.58,175.21,175.2,9.29412461]
[1752792866428,32.56,175.21,175.2,9.29412461]
[1752792866737,42.56,175.21,175.2,9.29412461]
[1752792867061,10.0,175.22,175.2,15.69188716]
[1752792867356,32.59,175.23,175.21,9.98412461]
[1752792867650,0.03,175.23,175.22,35.29412461]
[1752792867832,0.03,175.23,175.22,35.98412461]
[1752792868039,0.03,175.23,175.22,26.28899122]
[1752792868243,0.03,175.23,175.22,35.58311583]
[1752792868852,0.03,175.23,175.22,36.27311583]
[1752792869162,0.03,175.23,175.22,41.98022689]
[1752792869722,0.03,175.23,175.22,41.29022689]
[1752792869929,10.74,175.23,175.22,9.29412461]
[1752792870242,43.38,175.23,175.22,9.29412461]
[1752792871143,42.67,175.23,175.22,15.00123567]
[1752792871322,42.67,175.23,175.2,5.70776255]
[1752792871525,43.38,175.23,175.22,9.29412461]
[1752792871943,43.38,175.23,175.2,5.70776255]
[1752792871944,42.67,175.23,175.2,5.70776255]
[1752792872141,10.0,175.21,175.2,5.70776255]
[1752792872334,10.0,175.21,175.2,15.00188716]
[1752792872943,0.03,175.23,175.2,15.69188716]
[1752792873161,0.03,175.23,175.22,9.29412461]
[1752792873368,10.03,175.23,175.22,9.29412461]
[1752792873658,0.03,175.23,175.22,9.98412461]
[1752792873860,10.03,175.23,175.22,9.98412461]
[1752792874244,0.03,175.23,175.22,9.98412461]
[1752792874445,10.03,175.23,175.22,9.98412461]
[1752792874835,0.03,175.23,175.22,9.98412461]
[1752792875031,0.03,175.23,175.22,15.69123567]
[1752792875766,0.03,175.23,175.22,15.00123567]
[1752792876056,0.03,175.23,175.19,5.70802496]
[1752792876057,10.0,175.2,175.19,5.70802496]
[1752792876236,10.0,175.2,175.19,15.00214957]
[1752792876437,33.24,175.23,175.19,15.00214957]
[1752792876438,10.0,175.21,175.19,15.00214957]
[1752792876638,10.0,175.21,175.2,9.29412461]
[1752792877038,10.0,175.21,175.2,15.00188716]
[1752792877450,33.24,175.23,175.2,15.00188716]
[1752792877451,32.53,175.23,175.2,15.98107372]
[1752792877648,42.53,175.23,175.22,9.29412461]
[1752792877850,42.53,175.23,175.2,6.68694911]
[1752792878059,10.03,175.23,175.22,9.29412461]
[1752792878452,0.03,175.23,175.22,9.98412461]
[1752792878758,0.03,175.23,175.22,10.27311583]
[1752792878959,0.03,175.23,175.22,36.27311583]
[1752792879153,0.03,175.23,175.22,58.76491086]
[1752792879961,42.44,175.29,175.23,16.78468397]
[1752792880257,42.44,175.29,175.28,9.29412461]
[1752792880955,10.03,175.31,175.28,9.29412461]
[1752792881253,0.03,175.31,175.29,5.70483199]
[1752792881453,10.03,175.31,175.3,9.29412461]
[1752792881657,0.03,175.31,175.3,9.58246472]
[1752792882160,0.03,175.31,175.3,10.27246472]
[1752792882661,10.0,175.37,175.32,26.0]
[1752792882976,10.0,175.37,175.33,0.9780312]
[1752792883161,10.0,175.35,175.34,5.7032052]
[1752792883365,10.0,175.35,175.34,14.99732981]
[1752792883657,10.0,175.35,175.34,5.7032052]
[1752792883855,10.0,175.35,175.34,9.29412461]
[1752792884067,10.71,175.35,175.34,9.29412461]
[1752792884764,10.0,175.35,175.34,9.29412461]
[1752792884963,10.0,175.33,175.3,31.70450656]
[1752792885144,10.0,175.34,175.32,9.29412461]
[1752792885345,10.0,175.34,175.33,9.29412461]
[1752792885541,10.71,175.34,175.33,9.29412461]
[1752792885754,10.0,175.34,175.33,9.29412461]
[1752792886051,10.71,175.34,175.3,31.70450656]
[1752792886350,10.71,175.33,175.29,0.28819425]
[1752792886556,10.0,175.28,175.27,9.29412461]
[1752792887270,10.0,175.28,175.25,5.70613409]
[1752792887451,10.0,175.27,175.25,5.70613409]
[1752792887656,10.71,175.26,175.18,0.97878045]
[1752792887966,10.0,175.24,175.23,9.29412461]
[1752792888163,10.71,175.24,175.23,9.29412461]
[1752792888369,10.0,175.24,175.23,9.29412461]
[1752792889363,10.0,175.24,175.2,26.0]
[1752792889364,10.71,175.24,175.2,5.70768141]
[1752792889575,10.0,175.23,175.2,5.70768141]
[1752792889742,10.0,175.25,175.22,9.29412461]
[1752792889939,10.0,175.27,175.24,9.29412461]
[1752792890178,10.0,175.28,175.26,9.29412461]
[1752792890354,10.0,175.28,175.27,9.29412461]
[1752792890557,43.9382,175.31,175.29,26.0]
[1752792890786,42.32,175.31,175.27,26.9785842]
[1752792890941,10.0,175.3,175.27,26.2885842]
[1752792891281,10.0,175.3,175.29,9.29412461]
[1752792891646,10.0,175.3,175.29,14.9989566]
[1752792891847,10.0,175.31,175.29,40.9989566]
[1752792892080,10.0,175.31,175.3,9.58249717]
[1752792892256,10.0,175.31,175.3,9.29412461]
[1752792893148,10.0,175.31,175.29,31.99318855]
[1752792893452,10.0,175.31,175.3,14.99863117]
[1752792893850,10.0,175.32,175.3,14.99863117]
[1752792894084,10.0,175.31,175.3,5.70450656]
[1752792894876,10.03,175.31,175.3,5.70450656]
[1752792895264,10.03,175.31,175.3,15.66863117]
[1752792895651,10.03,175.31,175.3,14.99863117]
[1752792897141,10.03,175.31,175.3,5.70450656]
[1752792897374,10.7,175.31,175.3,9.29412461]
[1752792898051,10.0,175.29,175.27,0.06]
[1752792898247,10.0,175.29,175.28,9.29412461]
[1752792898446,10.67,175.29,175.27,0.06]
[1752792898748,10.0,175.28,175.27,9.35412461]
[1752792899553,10.67,175.28,175.27,9.35412461]
[1752792899745,10.0,175.28,175.27,9.35412461]
[1752792899944,10.67,175.28,175.27,9.35412461]
[1752792900145,10.0,175.28,175.27,9.35412461]
[1752792900345,10.0,175.28,175.27,0.06]
[1752792900775,26.96966929,175.28,175.27,0.06]
[1752792900950,10.0,175.22,175.21,9.29412461]
[1752792901358,10.67,175.22,175.17,94.50867152]
[1752792901565,10.67,175.22,175.11,88.8]
[1752792901566,10.0,175.19,175.11,88.8]
[1752792901767,10.0,175.15,175.1,22.84231548]
[1752792901966,10.0,175.15,175.13,9.29412461]
[1752792902147,10.0,175.15,175.14,9.35412461]
[1752792902548,10.67,175.15,175.14,0.06]
[1752792902746,10.67,175.15,175.04,88.86]
[1752792902747,10.0,175.09,175.04,88.86]
[1752792902974,10.0,175.09,175.05,6.38265352]
[1752792903167,10.0,175.09,175.08,12.99000599]
[1752792903767,10.0,175.1,175.09,5.71134844]
[1752792903961,10.0,175.11,175.09,5.71134844]
[1752792904169,10.0,175.1,175.06,5.71228514]
[1752792904363,10.0,175.09,175.06,5.71228514]
[1752792904578,10.0,175.09,175.08,38.99000599]
[1752792904793,10.0,175.09,175.08,12.99000599]
[1752792905275,10.0,175.09,175.08,38.99000599]
[1752792905500,10.0,175.1,175.08,38.99000599]
[1752792905671,10.0,175.09,175.08,26.0]
[1752792905851,10.0,175.11,175.08,45.37168065]
[1752792906049,10.0,175.13,175.1,38.99000599]
[1752792906258,10.0,175.13,175.12,12.99000599]
[1752792906461,10.67,175.13,175.12,12.99000599]
[1752792906862,10.0,175.13,175.12,12.99000599]
[1752792907795,10.0,175.11,175.08,31.71167466]
[1752792907963,10.0,175.11,175.08,32.38167466]
[1752792908156,10.0,175.11,175.1,26.0]
[1752792908657,10.0,175.12,175.11,26.0]
[1752792908980,10.0,175.12,175.11,38.99000599]
[1752792909500,10.0,175.12,175.11,26.0]
[1752792909658,10.0,175.11,175.08,5.71167466]
[1752792909859,10.0,175.09,175.08,5.71167466]
[1752792910171,10.0,175.13,175.11,26.0]
[1752792910678,10.0,175.12,175.11,26.95985498]
[1752792910878,10.0,175.14,175.11,26.95985498]
[1752792911083,10.0,175.14,175.13,12.99000599]
[1752792911269,10.0,175.15,175.13,12.99000599]
[1752792911470,10.0,175.14,175.12,26.0]
[1752792911784,1.5773,175.18,175.15,26.0]
[1752792911785,10.0,175.16,175.15,26.0]
[1752792911959,10.0,175.16,175.15,44.69939793]
[1752792912561,10.0,175.17,175.15,44.69939793]
[1752792912889,10.0,175.19,175.18,26.0]
[1752792913075,10.0,175.19,175.18,38.99000599]
[1752792914160,10.0,175.19,175.18,44.69842019]
[1752792916086,10.0,175.18,175.15,26.0]
[1752792916384,10.0,175.14,175.13,5.71004396]
[1752792916564,10.0,175.14,175.13,35.71004396]
[1752792917063,10.0,175.14,175.13,5.71004396]
[1752792917266,10.0,175.15,175.14,0.06]
[1752792917481,10.0,175.15,175.14,13.05000599]
[1752792917785,10.0,175.15,175.14,13.72000599]
[1752792917990,10.0,175.17,175.14,30.50468996]
[1752792918285,10.0,175.18,175.17,26.0]
[1752792918468,10.0,175.18,175.17,38.99000599]
[1752792918664,0.03,175.19,175.17,39.66000599]
[1752792918892,0.03,175.19,175.18,13.94935546]
[1752792919183,0.03,175.19,175.18,13.27935546]
[1752792919386,0.03,175.19,175.18,0.28934947]
[1752792919785,10.03,175.19,175.18,26.0]
[1752792919965,10.03,175.19,175.18,38.99000599]
[1752792920301,10.03,175.19,175.18,44.69842019]
[1752792920593,10.03,175.19,175.18,45.36842019]
[1752792921002,0.03,175.19,175.18,45.36842019]
[1752792921470,1e-08,175.19,175.18,62.15310416]
[1752792921872,1e-08,175.19,175.18,61.48310416]
[1752792922091,1e-08,175.19,175.18,61.77245363]
[1752792922483,1e-08,175.19,175.18,62.44245363]
[1752792922993,1e-08,175.19,175.18,58.82760935]
[1752792923588,10.0,175.22,175.21,26.0]
[1752792923795,10.0,175.22,175.21,35.37516171]
[1752792924095,10.72,175.22,175.21,9.37516171]
[1752792924476,10.72,175.22,175.21,15.0825985]
[1752792924674,10.0,175.22,175.21,15.0825985]
[1752792926572,10.0,175.22,175.21,41.0825985]
[1752792926771,10.0,175.22,175.21,15.0825985]
[1752792926983,0.03,175.23,175.21,15.0825985]
[1752792926984,10.03,175.23,175.21,15.0825985]
[1752792927199,0.03,175.23,175.22,9.37516171]
[1752792927376,10.03,175.23,175.22,9.37516171]
[1752792927576,0.03,175.23,175.22,9.37516171]
[1752792927776,0.75,175.23,175.21,5.70743679]
[1752792928082,10.03,175.23,175.22,9.37516171]
[1752792928672,10.75,175.23,175.21,5.70736238]
[1752792928872,10.03,175.23,175.22,9.37516171]
[1752792929586,10.75,175.23,175.22,9.37516171]
[1752792930196,10.03,175.23,175.22,9.37516171]
[1752792930581,10.03,175.23,175.22,15.08227277]
[1752792932474,10.75,175.23,175.22,15.08227277]
[1752792932799,10.03,175.23,175.22,15.08227277]
[1752792933103,0.03,175.23,175.22,16.03129645]
[1752792933395,10.03,175.23,175.22,16.03129645]
[1752792933779,0.03,175.23,175.22,16.03129645]
[1752792933981,0.03,175.23,175.22,15.37129645]
[1752792934194,0.03,175.23,175.22,15.08227277]
[1752792934491,10.03,175.23,175.22,15.08227277]
[1752792934899,0.03,175.23,175.22,15.08227277]
[1752792935089,10.03,175.23,175.22,15.08227277]
[1752792936114,10.75,175.23,175.22,15.08227277]
[1752792936403,0.75,175.23,175.22,15.08227277]
[1752792936596,10.03,175.23,175.22,15.08227277]
[1752792938500,10.0,175.21,175.2,5.70776255]
[1752792938682,10.72,175.21,175.2,15.08292426]
[1752792939294,10.72,175.21,175.2,5.70776255]
[1752792939525,10.72,175.21,175.2,15.08292426]
[1752792939745,10.72,175.21,175.2,9.37516171]
[1752792940082,10.72,175.21,175.19,15.14316302]
[1752792940083,10.0,175.2,175.19,15.14316302]
[1752792940281,10.72,175.2,175.19,15.14316302]
[1752792940489,10.72,175.2,175.19,9.43516171]
[1752792940697,10.72,175.2,175.19,15.14325007]
[1752792941199,10.72,175.2,175.19,9.43516171]
[1752792941389,10.72,175.2,175.19,15.14325007]
[1752792941800,0.03,175.23,175.19,39.44863268]
[1752792942003,0.03,175.31,175.23,5.70678536]
[1752792942215,0.03,175.31,175.3,9.37516171]
[1752792942887,0.75,175.31,175.26,26.28840592]
[1752792943087,0.75,175.31,175.26,0.28840592]
[1752792943088,0.03,175.31,175.26,0.28840592]
[1752792943417,0.03,175.31,175.24,17.07321973]
[1752792943418,0.72,175.3,175.24,17.07321973]
[1752792943611,0.72,175.3,175.29,9.37516171]
[1752792943986,0.03,175.31,175.29,9.37516171]
[1752792944192,0.03,175.31,175.3,15.07966827]
[1752792945189,0.75,175.31,175.3,15.07966827]
[1752792945418,0.03,175.31,175.3,15.07966827]
[1752792945726,0.03,175.31,175.3,15.73966827]
[1752792945897,0.03,175.31,175.3,5.70450656]
[1752792946101,0.03,175.31,175.3,15.07966827]
[1752792946495,0.75,175.31,175.3,15.07966827]
[1752792946698,0.75,175.31,175.3,5.70450656]
[1752792946921,0.75,175.31,175.3,15.07966827]
[1752792947232,0.03,175.31,175.3,15.07966827]
[1752792947713,0.75,175.31,175.3,15.07966827]
[1752792948909,0.03,175.31,175.3,15.07966827]
[1752792949117,0.03,175.31,175.3,9.37516171]
[1752792949505,0.03,175.31,175.3,9.66350182]
[1752792949837,0.03,175.31,175.3,9.37516171]
[1752792950002,0.75,175.31,175.3,9.37516171]
[1752792950931,0.03,175.31,175.3,15.07966827]
[1752792951134,0.75,175.31,175.3,1.42599044]
[1752792951325,0.75,175.31,175.3,10.80115215]
[1752792952034,30.75,175.31,175.3,16.50565871]
[1752792952232,30.03,175.31,175.3,15.07966827]
[1752792952802,30.03,175.31,175.3,16.50563822]
[1752792953950,0.03,175.36,175.3,39.38609638]
[1752792954109,0.03,175.36,175.35,9.37516171]
[1752792954628,0.03,175.36,175.35,15.07804166]
[1752792957511,0.03,175.36,175.35,9.37516171]
[1752792957820,0.03,175.36,175.35,10.33309518]
[1752792958739,0.03,175.36,175.35,9.66309518]
[1752792959642,0.03,175.36,175.35,16.03597513]
[1752792960443,0.2,175.4,175.39,9.37516171]
[1752792960737,0.89,175.4,175.39,9.37516171]
[1752792961333,0.2,175.4,175.35,20.2480133]
[1752792961557,2.3173,175.39,175.33,0.28793347]
[1752792961835,10.06516171,175.38,175.31,5.70407373]
[1752792962005,33.64277869,175.37,175.32,9.37516171]
[1752792962205,0.69,175.36,175.33,9.37516171]
[1752792962428,32.95277869,175.37,175.33,9.37516171]
[1752792962429,0.69,175.35,175.33,9.37516171]
[1752792962634,32.95277869,175.37,175.33,9.37516171]
[1752792962814,0.69,175.34,175.33,9.37516171]
[1752792963013,7.0148,175.36,175.33,9.37516171]
[1752792963209,0.69,175.35,175.34,9.37516171]
[1752792963434,32.24,175.37,175.34,15.07831771]
[1752792963744,2.33999741,175.39,175.36,9.37516171]
[1752792964052,0.69,175.37,175.32,5.70380461]
[1752792964210,32.97281934,175.36,175.32,9.37516171]
[1752792964412,0.69,175.35,175.33,9.37516171]
[1752792964635,0.69,175.34,175.33,9.37516171]
[1752792965746,0.69,175.34,175.32,9.37516171]
[1752792966249,38.70544758,175.36,175.33,9.37516171]
[1752792966813,0.69,175.35,175.33,9.37516171]
[1752792967010,0.69,175.34,175.33,9.37516171]
[1752792967609,33.00281934,175.36,175.33,9.37516171]
[1752792967810,33.00281934,175.36,175.28,26.0]
[1752792968030,33.00281934,175.36,175.23,88.86]
[1752792968031,9.37516171,175.33,175.23,88.86]
[1752792968247,33.94298197,175.32,175.23,0.06]
[1752792968455,33.25298197,175.32,175.28,9.37516171]
[1752792968614,0.69,175.31,175.28,9.37516171]
[1752792968814,1.40302264,175.31,175.28,9.37516171]
[1752792969043,0.69,175.3,175.28,9.37516171]
[1752792969225,32.54,175.32,175.29,9.37516171]
[1752792969632,0.69,175.31,175.29,9.37516171]
[1752792969850,0.69,175.3,175.29,9.37516171]
[1752792970562,0.69,175.3,175.28,9.37516171]
[1752792970856,0.69,175.29,175.28,9.37516171]
[1752792971750,0.69,175.31,175.28,9.37516171]
[1752792971943,0.69,175.31,175.29,9.37516171]
[1752792972150,0.69,175.3,175.29,9.37516171]
[1752792972357,0.69,175.3,175.25,5.70613409]
[1752792972555,0.69,175.29,175.24,5.70643117]
[1752792972861,0.71306332,175.3,175.24,5.70643117]
[1752792972862,0.69,175.28,175.27,9.37516171]
[1752792973428,0.69,175.3,175.27,9.37516171]
[1752792973627,0.69,175.3,175.29,9.37516171]
[1752792973862,0.69,175.3,175.28,9.37516171]
[1752792974069,33.23,175.32,175.29,9.37516171]
[1752792974355,33.23,175.32,175.31,9.37516171]
[1752792974562,32.54,175.32,175.31,9.37516171]
[1752792975067,1.5846,175.34,175.31,9.37516171]
[1752792975362,1.5846,175.34,175.33,9.37516171]
[1752792975526,2.2746,175.34,175.33,9.37516171]
[1752792977464,1.5846,175.34,175.33,9.37516171]
[1752792979455,1.5846,175.34,175.3,5.70450656]
[1752792979777,1.5846,175.34,175.33,9.37516171]
[1752792979951,32.44,175.35,175.33,9.37516171]
[1752792980152,32.44,175.35,175.34,9.37516171]
[1752792980666,32.44,175.35,175.31,0.9580965]
[1752792980861,0.69,175.34,175.33,9.37516171]
[1752792981066,1.40290065,175.34,175.31,9.37516171]
[1752792981272,0.69,175.33,175.3,9.37516171]
[1752792981474,0.71290065,175.34,175.31,9.37516171]
[1752792981655,32.97,175.33,175.32,9.37516171]
[1752792981979,32.28,175.33,175.32,9.37516171]
[1752792983278,33.04281934,175.36,175.32,9.37516171]
[1752792983462,32.33,175.36,175.32,10.09516171]
[1752792983663,32.33,175.36,175.35,9.37516171]
[1752792983850,0.03,175.36,175.35,9.37516171]
[1752792985049,0.03,175.36,175.35,5.85098508]
[1752792985285,0.03,175.36,175.35,6.57098508]
[1752792985459,0.2,175.4,175.35,6.85891855]
[1752792985663,0.2,175.4,175.39,5.85098508]
[1752792985875,0.2,175.4,175.36,5.70255474]
[1752792986078,0.2,175.4,175.39,5.85098508]
[1752792986454,0.86,175.4,175.39,5.85098508]
[1752792988153,0.86,175.4,175.35,5.85098508]
[1752792988353,1.37269741,175.39,175.35,5.85098508]
[1752792988659,32.9,175.38,175.35,5.85098508]
[1752792988863,1.37277869,175.37,175.35,5.85098508]
[1752792989056,0.66,175.36,175.35,9.36521125]
[1752792989978,32.95273805,175.38,175.35,9.36521125]
[1752792990179,33.61273805,175.38,175.36,9.36521125]
[1752792991094,0.66,175.37,175.36,9.36521125]
[1752792992168,1.37277869,175.37,175.35,9.36521125]
[1752792992474,0.66,175.37,175.35,9.36521125]
[1752792992678,0.66,175.37,175.36,9.36521125]
[1752792992873,0.66,175.37,175.33,0.06]
[1752792993077,1.37281934,175.36,175.34,9.36521125]
[1752792993287,32.8,175.35,175.34,9.36521125]
[1752792994387,32.8,175.35,175.33,9.42521125]
[1752792994595,32.8,175.35,175.33,0.06]
[1752792994795,32.8,175.35,175.33,9.42521125]
[1752792994796,0.66,175.34,175.33,9.42521125]
[1752792995106,2.93430065,175.34,175.33,0.06]
[1752792995293,2.2214,175.34,175.33,0.06]
[1752792997285,1.5614,175.34,175.33,0.06]
[1752792997775,2.2214,175.34,175.33,0.06]
[1752792998697,1.5614,175.34,175.33,9.42521125]
[1752792998900,32.14,175.35,175.33,9.42521125]
[1752792999073,32.14,175.35,175.34,10.08521125]
[1752792999273,32.14,175.35,175.34,9.36521125]
[1752792999471,9.02109741,175.39,175.34,10.08521125]
[1752792999701,31.98,175.37,175.35,5.70287995]
[1752793000887,31.98,175.37,175.36,9.36521125]
[1752793002481,31.98,175.37,175.36,15.06776599]
[1752793003805,31.9,175.39,175.36,15.78776599]
[1752793004103,31.9,175.39,175.38,9.36521125]
[1752793005781,31.9,175.39,175.38,15.06711568]
[1752793006899,32.56,175.39,175.38,15.06711568]
[1752793007205,31.9,175.39,175.38,15.06711568]
[1752793009289,31.93,175.39,175.38,15.06711568]
[1752793010493,31.93,175.39,175.38,9.36521125]
[1752793010897,32.59,175.39,175.38,9.36521125]
[1752793011087,32.59,175.39,175.38,5.85005302]
[1752793011396,0.03,175.39,175.38,5.85005302]
[1752793011580,0.03,175.39,175.38,6.57005302]
[1752793012394,0.03,175.39,175.38,12.70779563]
[1752793012693,0.2,175.4,175.38,18.40970006]
[1752793012879,0.2,175.4,175.39,11.70010604]
[1752793013075,0.2,175.4,175.39,12.42010604]
[1752793013397,0.2,175.41,175.39,55.16479001]
[1752793013582,0.03,175.44,175.4,12.66766552]
[1752793013777,0.03,175.44,175.43,5.85005302]
[1752793014900,0.03,175.44,175.43,12.23033233]
[1752793016691,0.2,175.49,175.43,12.23033233]
[1752793016902,0.2,175.49,175.44,6.53005302]
[1752793017507,0.2,175.49,175.48,5.85005302]
[1752793018696,0.2,175.49,175.48,11.54870813]
[1752793020617,0.91,175.49,175.46,26.0]
[1752793020808,1.42233188,175.48,175.41,16.78468397]
[1752793020982,0.71,175.47,175.43,5.85005302]
[1752793021185,0.71,175.47,175.38,6.38190443]
[1752793021186,0.71241308,175.46,175.42,5.85005302]
[1752793021504,12.05365302,175.43,175.36,0.06]
[1752793021709,7.27262855,175.42,175.37,5.85005302]
[1752793021939,0.71,175.41,175.36,0.06]
[1752793022139,32.21265678,175.4,175.37,5.85005302]
[1752793022303,32.21,175.4,175.38,5.85005302]
[1752793022719,0.71,175.39,175.38,5.85005302]
[1752793023105,0.71,175.39,175.37,5.85005302]
[1752793023331,31.5,175.4,175.37,5.85005302]
[1752793023508,31.5,175.4,175.39,5.85005302]
[1752793028827,32.21,175.4,175.38,5.85005302]
[1752793029007,31.5,175.4,175.38,5.85005302]
[1752793029207,32.21,175.4,175.38,5.85005302]
[1752793029835,1.42269741,175.39,175.37,5.85005302]
[1752793030531,0.71,175.38,175.37,5.85005302]
[1752793031034,0.71269741,175.39,175.37,5.85005302]
[1752793031235,1.42269741,175.39,175.38,5.85005302]
[1752793031614,1.42269741,175.39,175.37,5.85005302]
[1752793031946,0.71,175.38,175.37,5.85005302]
[1752793032437,0.71,175.38,175.36,5.91005302]
[1752793033224,0.71,175.38,175.37,5.85005302]
[1752793033633,0.71,175.38,175.36,5.91005302]
[1752793033938,0.71269741,175.39,175.37,5.85005302]
[1752793035535,1.42269741,175.39,175.37,5.85005302]
[1752793036243,0.71269741,175.39,175.37,5.85005302]
[1752793036538,1.42269741,175.39,175.37,5.85005302]
[1752793036725,1.42269741,175.39,175.38,5.85005302]
[1752793037240,1.42269741,175.39,175.37,5.85005302]
[1752793038736,0.71269741,175.39,175.37,5.85005302]
[1752793038942,0.71,175.38,175.37,5.85005302]
[1752793039146,0.71,175.38,175.36,0.06]
[1752793039347,0.71,175.38,175.37,5.85005302]
[1752793039731,0.71269741,175.39,175.37,5.85005302]
[1752793039942,1.42269741,175.39,175.37,5.85005302]
[1752793040545,0.71,175.38,175.36,0.06]
[1752793040844,0.71,175.38,175.37,5.85005302]
[1752793042642,6.41192307,175.38,175.36,0.06]
[1752793042827,31.81277869,175.37,175.36,0.06]
[1752793043144,32.52277869,175.37,175.36,0.06]
[1752793045142,31.1,175.37,175.36,5.91005302]
[1752793047322,37.48222957,175.37,175.36,0.06]
[1752793047548,32.49277869,175.37,175.36,0.06]
[1752793048055,31.81277869,175.37,175.36,5.91005302]
[1752793048448,31.1,175.37,175.36,5.91005302]
[1752793053851,0.03,175.39,175.36,12.32260776]
[1752793054147,0.03,175.39,175.38,5.85005302]
[1752793054551,0.03,175.42,175.38,38.41010604]
[1752793054732,0.03,175.42,175.41,5.85005302]
[1752793055552,0.03,175.42,175.41,6.56005302]
[1752793055743,0.03,175.42,175.41,5.85005302]
[1752793057350,0.74257553,175.42,175.4,5.85005302]
[1752793057529,0.74257553,175.42,175.38,5.85005302]
[1752793057530,31.72,175.41,175.38,5.85005302]
[1752793057730,1.39265678,175.4,175.37,5.85005302]
[1752793057939,0.71265678,175.4,175.38,5.85005302]
[1752793058234,0.71265678,175.4,175.39,5.85005302]
[1752793058553,32.6329,175.41,175.39,5.85005302]